[Event "Late-Titled-Tuesday-Blitz-April-16-2024"]
[Site "Chess.com"]
[Date "2024.04.16"]
[Round "2"]
[White "ritanovikova"]
[Black "ShahxaibKhan"]
[Result "0-1"]
[WhiteElo "2161"]
[BlackElo "2457"]
[TimeControl "180+1"]
[EndTime "14:17:48 PDT"]
[Termination "ShahxaibKhan won by resignation"]

1. e4 {[%clk 0:02:51.2]} 1... d5 {[%clk 0:03:00]} 2. exd5 {[%clk 0:02:50.8]}
2... Nf6 {[%clk 0:03:00]} 3. Nc3 {[%clk 0:02:51.7]} 3... Nxd5 {[%clk 0:02:57.9]}
4. Nxd5 {[%clk 0:02:52.1]} 4... Qxd5 {[%clk 0:02:58]} 5. Nf3 {[%clk 0:02:51.8]}
5... Nc6 {[%clk 0:02:57.7]} 6. Be2 {[%clk 0:02:51.7]} 6... Bg4 {[%clk
0:02:57.7]} 7. O-O {[%clk 0:02:51.2]} 7... O-O-O {[%clk 0:02:57.7]} 8. h3 {[%clk
0:02:50.3]} 8... h5 {[%clk 0:02:56.5]} 9. d3 {[%clk 0:02:44.4]} 9... e5 {[%clk
0:02:55.1]} 10. Be3 {[%clk 0:02:41.8]} 10... f5 {[%clk 0:02:54]} 11. Ng5 {[%clk
0:02:38.1]} 11... Be7 {[%clk 0:02:49.8]} 12. hxg4 {[%clk 0:02:31.2]} 12... hxg4
{[%clk 0:02:49.1]} 13. Bxg4 {[%clk 0:02:22.6]} 13... fxg4 {[%clk 0:02:26.2]} 14.
Qxg4+ {[%clk 0:02:23.5]} 14... Kb8 {[%clk 0:02:25.8]} 15. Qe6 {[%clk 0:02:17.1]}
15... Bxg5 {[%clk 0:02:17.5]} 16. Qxd5 {[%clk 0:02:14.3]} 16... Rxd5 {[%clk
0:02:16.9]} 17. Bxg5 {[%clk 0:02:14.5]} 17... Nd4 {[%clk 0:02:17.5]} 18. Rfc1
{[%clk 0:01:54.8]} 18... e4 {[%clk 0:01:58.8]} 19. Be3 {[%clk 0:01:46]} 19...
Rdh5 {[%clk 0:01:56.1]} 20. f3 {[%clk 0:01:28]} 20... Ne2+ {[%clk 0:01:40.4]}
21. Kf2 {[%clk 0:01:26.7]} 21... Nxc1 {[%clk 0:01:40.2]} 22. Rxc1 {[%clk
0:01:25.9]} 22... exf3 {[%clk 0:01:40.2]} 23. Kxf3 {[%clk 0:01:24]} 23... Rf5+
{[%clk 0:01:35.1]} 24. Kg3 {[%clk 0:01:16]} 24... Re8 {[%clk 0:01:31.5]} 25. Bd4
{[%clk 0:01:12.7]} 25... c5 {[%clk 0:01:27.2]} 26. Bc3 {[%clk 0:01:03.9]} 26...
Re2 {[%clk 0:01:25.2]} 27. Kg4 {[%clk 0:00:41.3]} 27... Rff2 {[%clk 0:01:21.4]}
28. g3 {[%clk 0:00:39.7]} 28... g6 {[%clk 0:01:15.2]} 29. Rh1 {[%clk 0:00:33.1]}
29... b5 {[%clk 0:01:03.4]} 30. a3 {[%clk 0:00:19.9]} 30... Kb7 {[%clk
0:00:54.9]} 31. Rh6 {[%clk 0:00:18.1]} 31... Re6 {[%clk 0:00:53.3]} 32. Rh7+
{[%clk 0:00:15.9]} 32... Kb6 {[%clk 0:00:52.3]} 33. d4 {[%clk 0:00:16.3]} 33...
Re4+ {[%clk 0:00:37.4]} 34. Kg5 {[%clk 0:00:13.6]} 34... cxd4 {[%clk 0:00:35]}
35. Bb4 {[%clk 0:00:10.6]} 35... a5 {[%clk 0:00:25]} 36. Bd6 {[%clk 0:00:10.7]}
36... Rxc2 {[%clk 0:00:23]} 37. Bc7+ {[%clk 0:00:08.3]} 37... Rxc7 {[%clk
0:00:22.5]} 0-1

[Event "Late-Titled-Tuesday-Blitz-April-16-2024"]
[Site "Chess.com"]
[Date "2024.04.16"]
[Round "2"]
[White "ameetghasi100"]
[Black "PositionalPanther"]
[Result "1-0"]
[WhiteElo "2785"]
[BlackElo "2523"]
[TimeControl "180+1"]
[EndTime "14:17:49 PDT"]
[Termination "ameetghasi100 won by checkmate"]

1. c4 {[%clk 0:03:00]} 1... e6 {[%clk 0:02:59.9]} 2. d4 {[%clk 0:02:59.6]} 2...
d5 {[%clk 0:03:00]} 3. Nc3 {[%clk 0:03:00.5]} 3... a6 {[%clk 0:02:59.3]} 4. Nf3
{[%clk 0:03:01.4]} 4... dxc4 {[%clk 0:02:59]} 5. a4 {[%clk 0:03:01.8]} 5... Nc6
{[%clk 0:02:58.9]} 6. e4 {[%clk 0:03:00.5]} 6... Na5 {[%clk 0:02:57.2]} 7. Be3
{[%clk 0:03:00.8]} 7... Nf6 {[%clk 0:02:53]} 8. Be2 {[%clk 0:03:00.6]} 8... Bb4
{[%clk 0:02:41.6]} 9. Nd2 {[%clk 0:03:00.4]} 9... Rb8 {[%clk 0:02:23]} 10. O-O
{[%clk 0:02:57.9]} 10... b5 {[%clk 0:02:17.2]} 11. Qc2 {[%clk 0:02:37.9]} 11...
c6 {[%clk 0:01:56.7]} 12. Rad1 {[%clk 0:02:00.5]} 12... Qc7 {[%clk 0:01:45]} 13.
Bg5 {[%clk 0:01:55.7]} 13... h6 {[%clk 0:01:36.4]} 14. Bh4 {[%clk 0:01:54.6]}
14... Qb6 {[%clk 0:01:16.6]} 15. Bg3 {[%clk 0:01:24.3]} 15... Ra8 {[%clk
0:01:10.3]} 16. Be5 {[%clk 0:01:20.9]} 16... Bb7 {[%clk 0:00:58.2]} 17. Kh1
{[%clk 0:01:14.3]} 17... Rd8 {[%clk 0:00:50]} 18. Bf3 {[%clk 0:01:07.3]} 18...
O-O {[%clk 0:00:43.4]} 19. b3 {[%clk 0:00:59.9]} 19... cxb3 {[%clk 0:00:38.9]}
20. Nxb3 {[%clk 0:00:59.3]} 20... Nxb3 {[%clk 0:00:34.4]} 21. Qxb3 {[%clk
0:01:00.2]} 21... c5 {[%clk 0:00:24.5]} 22. axb5 {[%clk 0:00:53.2]} 22... axb5
{[%clk 0:00:23.8]} 23. Na2 {[%clk 0:00:49.3]} 23... Ba5 {[%clk 0:00:20.4]} 24.
dxc5 {[%clk 0:00:37.7]} 24... Qxc5 {[%clk 0:00:21.3]} 25. Qb2 {[%clk 0:00:38.2]}
25... Rxd1 {[%clk 0:00:15.6]} 26. Rxd1 {[%clk 0:00:39.1]} 26... Qe7 {[%clk
0:00:13.3]} 27. Qxb5 {[%clk 0:00:36.3]} 27... Ra8 {[%clk 0:00:13.2]} 28. Bxf6
{[%clk 0:00:25.8]} 28... gxf6 {[%clk 0:00:14.1]} 29. Rd7 {[%clk 0:00:25.2]}
29... Qa3 {[%clk 0:00:01.4]} 30. Qxb7 {[%clk 0:00:21.5]} 30... Bc3 {[%clk
0:00:01.9]} 31. Nxc3 {[%clk 0:00:16]} 31... Qc1+ {[%clk 0:00:02.5]} 32. Nd1
{[%clk 0:00:15.5]} 32... Ra1 {[%clk 0:00:02.8]} 33. Qb8+ {[%clk 0:00:13.3]}
33... Kg7 {[%clk 0:00:02.7]} 34. Qg3+ {[%clk 0:00:13.6]} 34... Kf8 {[%clk
0:00:02.3]} 35. Rd8+ {[%clk 0:00:12.6]} 35... Ke7 {[%clk 0:00:01.2]} 36. Qd6#
{[%clk 0:00:12.7]} 1-0

[Event "Late-Titled-Tuesday-Blitz-April-16-2024"]
[Site "Chess.com"]
[Date "2024.04.16"]
[Round "2"]
[White "SRob2003"]
[Black "LyonBeast"]
[Result "0-1"]
[WhiteElo "2679"]
[BlackElo "3129"]
[TimeControl "180+1"]
[EndTime "14:17:53 PDT"]
[Termination "LyonBeast won by checkmate"]

1. c4 {[%clk 0:03:00.9]} 1... e5 {[%clk 0:02:53.6]} 2. g3 {[%clk 0:03:01]} 2...
f5 {[%clk 0:02:48.7]} 3. Nf3 {[%clk 0:02:57.3]} 3... d6 {[%clk 0:02:46.7]} 4. d4
{[%clk 0:02:57.6]} 4... e4 {[%clk 0:02:46]} 5. Nh4 {[%clk 0:02:58.2]} 5... Be7
{[%clk 0:02:42.9]} 6. Nc3 {[%clk 0:02:58.3]} 6... Nc6 {[%clk 0:02:32.1]} 7. Ng2
{[%clk 0:02:39.2]} 7... Nf6 {[%clk 0:02:29.5]} 8. h4 {[%clk 0:02:35.8]} 8... O-O
{[%clk 0:02:20.9]} 9. Nf4 {[%clk 0:02:36]} 9... Qe8 {[%clk 0:02:17]} 10. h5
{[%clk 0:02:24.4]} 10... Bd8 {[%clk 0:02:16.1]} 11. b3 {[%clk 0:02:08.4]} 11...
Ng4 {[%clk 0:02:02.8]} 12. Bh3 {[%clk 0:01:57.9]} 12... e3 {[%clk 0:02:01]} 13.
Bxg4 {[%clk 0:01:19.3]} 13... exf2+ {[%clk 0:01:59.8]} 14. Kxf2 {[%clk
0:01:20.2]} 14... fxg4 {[%clk 0:02:00.4]} 15. e4 {[%clk 0:01:01]} 15... a6
{[%clk 0:01:26.1]} 16. Kg2 {[%clk 0:01:00.2]} 16... b5 {[%clk 0:01:25.2]} 17. a3
{[%clk 0:00:40.2]} 17... bxc4 {[%clk 0:01:23.4]} 18. bxc4 {[%clk 0:00:41.1]}
18... Rb8 {[%clk 0:01:23.2]} 19. Ra2 {[%clk 0:00:39.2]} 19... Bb7 {[%clk
0:01:11.2]} 20. Re2 {[%clk 0:00:23.7]} 20... Bg5 {[%clk 0:00:51.8]} 21. Ncd5
{[%clk 0:00:17.8]} 21... Qf7 {[%clk 0:00:47.5]} 22. Rf1 {[%clk 0:00:16.3]} 22...
Rbe8 {[%clk 0:00:47.4]} 23. Ref2 {[%clk 0:00:13.5]} 23... Qd7 {[%clk 0:00:35]}
24. Nc3 {[%clk 0:00:13.9]} 24... Na5 {[%clk 0:00:31]} 25. d5 {[%clk 0:00:06.5]}
25... Bxf4 {[%clk 0:00:27.3]} 26. gxf4 {[%clk 0:00:04.4]} 26... Nxc4 {[%clk
0:00:27.1]} 27. Qd4 {[%clk 0:00:05.1]} 27... Nb6 {[%clk 0:00:23.3]} 28. Bb2
{[%clk 0:00:05.4]} 28... Rf7 {[%clk 0:00:23.3]} 29. Ne2 {[%clk 0:00:05.5]} 29...
c5 {[%clk 0:00:22.4]} 30. Qc3 {[%clk 0:00:05]} 30... Rxe4 {[%clk 0:00:21.9]} 31.
h6 {[%clk 0:00:04.7]} 31... Nxd5 {[%clk 0:00:22]} 32. Qb3 {[%clk 0:00:02.9]}
32... Nxf4+ {[%clk 0:00:20.2]} 33. Kh2 {[%clk 0:00:02]} 33... g3+ {[%clk
0:00:19.3]} 34. Nxg3 {[%clk 0:00:02.1]} 34... Qh3+ {[%clk 0:00:18.6]} 35. Kg1
{[%clk 0:00:02.8]} 35... c4 {[%clk 0:00:14.7]} 36. Qf3 {[%clk 0:00:02.2]} 36...
Ne2+ {[%clk 0:00:13.6]} 37. Rxe2 {[%clk 0:00:01.3]} 37... Rxf3 {[%clk 0:00:13]}
38. Rxf3 {[%clk 0:00:01.8]} 38... Rxe2 {[%clk 0:00:13]} 39. Bxg7 {[%clk
0:00:01.8]} 39... Qg2# {[%clk 0:00:12.5]} 0-1

[Event "Late-Titled-Tuesday-Blitz-April-16-2024"]
[Site "Chess.com"]
[Date "2024.04.16"]
[Round "2"]
[White "shirovin"]
[Black "FuenfgegenWilly"]
[Result "0-1"]
[WhiteElo "2048"]
[BlackElo "2437"]
[TimeControl "180+1"]
[EndTime "14:17:55 PDT"]
[Termination "FuenfgegenWilly won on time"]

1. e4 {[%clk 0:03:00.9]} 1... e5 {[%clk 0:02:59.1]} 2. Nf3 {[%clk 0:03:00.3]}
2... Nc6 {[%clk 0:02:59.6]} 3. Bc4 {[%clk 0:03:00.1]} 3... Nf6 {[%clk
0:02:59.1]} 4. Ng5 {[%clk 0:02:59.3]} 4... d5 {[%clk 0:02:59.3]} 5. exd5 {[%clk
0:02:59.3]} 5... b5 {[%clk 0:02:59]} 6. Be2 {[%clk 0:02:54.3]} 6... Nd4 {[%clk
0:02:49.5]} 7. O-O {[%clk 0:02:45.7]} 7... Nxd5 {[%clk 0:02:44]} 8. Nf3 {[%clk
0:02:37.2]} 8... Qf6 {[%clk 0:02:07.3]} 9. Nxd4 {[%clk 0:02:30.7]} 9... exd4
{[%clk 0:02:08.2]} 10. Bxb5+ {[%clk 0:02:29.3]} 10... c6 {[%clk 0:02:08.8]} 11.
Bc4 {[%clk 0:02:23]} 11... Be6 {[%clk 0:02:01.7]} 12. d3 {[%clk 0:02:19]} 12...
Bd6 {[%clk 0:02:01.3]} 13. Nd2 {[%clk 0:02:14.2]} 13... Qh4 {[%clk 0:01:39.4]}
14. Nf3 {[%clk 0:01:44.9]} 14... Qh5 {[%clk 0:01:38.8]} 15. Bxd5 {[%clk
0:01:18]} 15... Bxd5 {[%clk 0:01:39.7]} 16. Re1+ {[%clk 0:01:17.1]} 16... Kd7
{[%clk 0:01:40.2]} 17. Ne5+ {[%clk 0:01:08.9]} 17... Qxe5 {[%clk 0:01:39.6]} 18.
Rxe5 {[%clk 0:01:07.8]} 18... Bxe5 {[%clk 0:01:40.5]} 19. Qg4+ {[%clk
0:01:00.8]} 19... Be6 {[%clk 0:01:33.3]} 20. Qf3 {[%clk 0:01:00.1]} 20... Rhe8
{[%clk 0:01:28.2]} 21. Bf4 {[%clk 0:00:58.7]} 21... Bf6 {[%clk 0:01:23.3]} 22.
h3 {[%clk 0:00:53.1]} 22... Bd5 {[%clk 0:01:22.3]} 23. Qg3 {[%clk 0:00:51.2]}
23... Re2 {[%clk 0:01:16.9]} 24. Bc7 {[%clk 0:00:41.8]} 24... Rae8 {[%clk
0:01:16.4]} 25. Qd6+ {[%clk 0:00:39.3]} 25... Kc8 {[%clk 0:01:16.8]} 26. Ba5
{[%clk 0:00:34.9]} 26... Be5 {[%clk 0:01:05.2]} 27. Qc5 {[%clk 0:00:25.9]} 27...
Bb8 {[%clk 0:00:47.8]} 28. b4 {[%clk 0:00:24.7]} 28... R8e6 {[%clk 0:00:45.7]}
29. b5 {[%clk 0:00:19.8]} 29... Rg6 {[%clk 0:00:44.9]} 30. g3 {[%clk 0:00:16.8]}
30... Bxg3 {[%clk 0:00:25.8]} 31. fxg3 {[%clk 0:00:13.5]} 31... Rxg3+ {[%clk
0:00:26.7]} 32. Kf1 {[%clk 0:00:13.3]} 32... Rh2 {[%clk 0:00:16.7]} 33. Qf8+
{[%clk 0:00:11.3]} 33... Kd7 {[%clk 0:00:17.2]} 34. Qd8+ {[%clk 0:00:09.9]}
34... Ke6 {[%clk 0:00:17.5]} 35. Qc8+ {[%clk 0:00:07.7]} 35... Kf6 {[%clk
0:00:16.8]} 36. Bd8+ {[%clk 0:00:07.5]} 36... Kg6 {[%clk 0:00:16]} 37. bxc6
{[%clk 0:00:04.8]} 37... Rf3+ {[%clk 0:00:12.8]} 38. Kg1 {[%clk 0:00:04]} 38...
Rfxh3 {[%clk 0:00:12.3]} 39. Qc7 {[%clk 0:00:01.1]} 39... Rh1+ {[%clk
0:00:11.9]} 0-1

[Event "Late-Titled-Tuesday-Blitz-April-16-2024"]
[Site "Chess.com"]
[Date "2024.04.16"]
[Round "2"]
[White "DanielNaroditsky"]
[Black "SaqoChess_Twitch"]
[Result "1-0"]
[WhiteElo "3122"]
[BlackElo "2672"]
[TimeControl "180+1"]
[EndTime "14:17:56 PDT"]
[Termination "DanielNaroditsky won by resignation"]

1. e4 {[%clk 0:03:00.9]} 1... c5 {[%clk 0:02:59.9]} 2. c3 {[%clk 0:03:01.3]}
2... d5 {[%clk 0:02:59.9]} 3. exd5 {[%clk 0:03:02.2]} 3... Qxd5 {[%clk
0:03:00.7]} 4. d4 {[%clk 0:03:02.8]} 4... Nf6 {[%clk 0:02:54]} 5. Nf3 {[%clk
0:03:03.3]} 5... Bg4 {[%clk 0:02:54]} 6. Be2 {[%clk 0:03:01.1]} 6... e6 {[%clk
0:02:54.4]} 7. h3 {[%clk 0:03:01.5]} 7... Bh5 {[%clk 0:02:53.5]} 8. Be3 {[%clk
0:03:02]} 8... cxd4 {[%clk 0:02:52.9]} 9. cxd4 {[%clk 0:03:02.9]} 9... Nc6
{[%clk 0:02:49.7]} 10. Nc3 {[%clk 0:03:03.4]} 10... Qd6 {[%clk 0:02:49.7]} 11.
Qb3 {[%clk 0:03:02.7]} 11... Be7 {[%clk 0:02:40]} 12. Qxb7 {[%clk 0:02:51.1]}
12... O-O {[%clk 0:02:22.7]} 13. O-O {[%clk 0:02:44.1]} 13... Rfb8 {[%clk
0:02:00.1]} 14. Qa6 {[%clk 0:02:43.2]} 14... Rxb2 {[%clk 0:01:58.7]} 15. Rac1
{[%clk 0:02:37.6]} 15... Nb4 {[%clk 0:01:43.2]} 16. Qa5 {[%clk 0:02:11.1]} 16...
Nbd5 {[%clk 0:01:13.6]} 17. Rb1 {[%clk 0:01:29.9]} 17... Rab8 {[%clk 0:00:50.8]}
18. Nb5 {[%clk 0:01:25]} 18... Qb4 {[%clk 0:00:25.7]} 19. Qxb4 {[%clk
0:01:15.3]} 19... Rxb4 {[%clk 0:00:26.4]} 20. Rxb4 {[%clk 0:01:13.5]} 20... Nxb4
{[%clk 0:00:25.1]} 21. a3 {[%clk 0:01:09.2]} 21... Nc2 {[%clk 0:00:20]} 22. Nxa7
{[%clk 0:01:08.3]} 22... Bxa3 {[%clk 0:00:19.1]} 23. Nc6 {[%clk 0:01:05.8]}
23... Re8 {[%clk 0:00:17.5]} 24. g4 {[%clk 0:01:05.2]} 24... Nxe3 {[%clk
0:00:16.4]} 25. fxe3 {[%clk 0:01:05.8]} 25... Bg6 {[%clk 0:00:16.6]} 26. Nfe5
{[%clk 0:01:06.3]} 26... Bf8 {[%clk 0:00:16.2]} 27. Nxg6 {[%clk 0:00:57.4]}
27... hxg6 {[%clk 0:00:16]} 28. Rb1 {[%clk 0:00:57.3]} 28... Nd5 {[%clk
0:00:15.7]} 29. Kf2 {[%clk 0:00:55.8]} 29... Rc8 {[%clk 0:00:15.1]} 30. Ne5
{[%clk 0:00:51.3]} 30... Bd6 {[%clk 0:00:11.1]} 31. Nc4 {[%clk 0:00:50.6]} 31...
Be7 {[%clk 0:00:08.1]} 32. Rb3 {[%clk 0:00:51.1]} 32... Nf6 {[%clk 0:00:08]} 33.
Kf3 {[%clk 0:00:51.3]} 33... g5 {[%clk 0:00:07.7]} 34. e4 {[%clk 0:00:51.5]}
34... g6 {[%clk 0:00:07.9]} 35. Ke3 {[%clk 0:00:51.8]} 35... Kg7 {[%clk
0:00:07.8]} 36. Rb7 {[%clk 0:00:51.5]} 36... Kf8 {[%clk 0:00:07.3]} 37. Bd3
{[%clk 0:00:51.3]} 37... Rd8 {[%clk 0:00:07.8]} 38. Ne5 {[%clk 0:00:51.4]} 38...
Ne8 {[%clk 0:00:06.4]} 39. Nc6 {[%clk 0:00:49.7]} 39... Nd6 {[%clk 0:00:05.9]}
40. Nxd8 {[%clk 0:00:48.1]} 40... Bxd8 {[%clk 0:00:06.8]} 41. Rd7 {[%clk
0:00:46]} 41... Be7 {[%clk 0:00:07.2]} 42. e5 {[%clk 0:00:46.2]} 42... Ne8
{[%clk 0:00:07.8]} 43. Bb5 {[%clk 0:00:46.4]} 43... Ng7 {[%clk 0:00:08.2]} 44.
Ke4 {[%clk 0:00:45]} 44... f5+ {[%clk 0:00:06.8]} 45. exf6 {[%clk 0:00:45.9]}
45... Bxf6 {[%clk 0:00:07.4]} 46. Rb7 {[%clk 0:00:44.9]} 46... Kg8 {[%clk
0:00:07.5]} 47. Bc4 {[%clk 0:00:43.5]} 47... Kf8 {[%clk 0:00:07.7]} 48. Ra7
{[%clk 0:00:42.3]} 48... Ke8 {[%clk 0:00:07]} 49. d5 {[%clk 0:00:40.1]} 49...
exd5+ {[%clk 0:00:07.2]} 50. Bxd5 {[%clk 0:00:40.8]} 50... Kf8 {[%clk
0:00:07.7]} 51. Rf7+ {[%clk 0:00:40.9]} 51... Kg8 {[%clk 0:00:06.9]} 52. Rxf6+
{[%clk 0:00:41.8]} 52... Kh7 {[%clk 0:00:07.7]} 53. Rf8 {[%clk 0:00:42.1]} 53...
Ne6 {[%clk 0:00:07.1]} 54. Bxe6 {[%clk 0:00:42.2]} 54... Kg7 {[%clk 0:00:07.4]}
55. Rg8+ {[%clk 0:00:42.8]} 55... Kh6 {[%clk 0:00:08.3]} 56. Ke5 {[%clk
0:00:41.1]} 1-0

[Event "Late-Titled-Tuesday-Blitz-April-16-2024"]
[Site "Chess.com"]
[Date "2024.04.16"]
[Round "2"]
[White "Josetricks"]
[Black "DrVelja"]
[Result "1-0"]
[WhiteElo "2649"]
[BlackElo "3009"]
[TimeControl "180+1"]
[EndTime "14:17:56 PDT"]
[Termination "Josetricks won by resignation"]

1. e4 {[%clk 0:03:00.9]} 1... c5 {[%clk 0:02:59.7]} 2. c3 {[%clk 0:03:00.9]}
2... d5 {[%clk 0:02:58.4]} 3. exd5 {[%clk 0:03:01.2]} 3... Nf6 {[%clk
0:02:59.1]} 4. Nf3 {[%clk 0:02:58.2]} 4... Nxd5 {[%clk 0:02:59.1]} 5. d4 {[%clk
0:02:58.9]} 5... cxd4 {[%clk 0:03:00]} 6. Nxd4 {[%clk 0:02:56.8]} 6... e5 {[%clk
0:03:00.5]} 7. Nf3 {[%clk 0:02:55.8]} 7... Nc6 {[%clk 0:02:55.6]} 8. Bb5 {[%clk
0:02:55.5]} 8... f6 {[%clk 0:02:56.2]} 9. O-O {[%clk 0:02:50.4]} 9... Bc5 {[%clk
0:02:48.3]} 10. Nxe5 {[%clk 0:02:42.5]} 10... fxe5 {[%clk 0:02:47]} 11. Qh5+
{[%clk 0:02:42.5]} 11... Kf8 {[%clk 0:02:44.3]} 12. Kh1 {[%clk 0:02:38.5]} 12...
Nf6 {[%clk 0:02:41.2]} 13. Qf3 {[%clk 0:02:36]} 13... Bg4 {[%clk 0:02:39.2]} 14.
Qg3 {[%clk 0:02:36.3]} 14... h5 {[%clk 0:02:09.1]} 15. Bg5 {[%clk 0:02:00.3]}
15... Qb6 {[%clk 0:01:13.9]} 16. Bxc6 {[%clk 0:01:57.4]} 16... Qxc6 {[%clk
0:01:13.5]} 17. Nd2 {[%clk 0:01:57.2]} 17... Rd8 {[%clk 0:01:06.1]} 18. Nc4
{[%clk 0:01:54.3]} 18... Ne4 {[%clk 0:00:59.4]} 19. Nxe5 {[%clk 0:01:39.8]}
19... Nxg3+ {[%clk 0:00:25.2]} 20. fxg3+ {[%clk 0:01:40.7]} 20... Qf6 {[%clk
0:00:25.7]} 21. Rxf6+ {[%clk 0:01:33.9]} 21... gxf6 {[%clk 0:00:26.6]} 22. Bxf6
{[%clk 0:01:34.8]} 22... Rd6 {[%clk 0:00:20.6]} 23. Bxh8 {[%clk 0:01:34.6]}
23... Kg8 {[%clk 0:00:19.7]} 24. Nxg4 {[%clk 0:01:34.5]} 24... hxg4 {[%clk
0:00:20.6]} 25. Be5 {[%clk 0:01:33.1]} 25... Rd2 {[%clk 0:00:21.4]} 26. b4
{[%clk 0:01:31.3]} 26... Be7 {[%clk 0:00:20.7]} 27. Bd4 {[%clk 0:01:28.3]} 27...
a6 {[%clk 0:00:20.7]} 28. a4 {[%clk 0:01:27.9]} 28... Bd6 {[%clk 0:00:20.7]} 29.
Kg1 {[%clk 0:01:24.4]} 29... Kf7 {[%clk 0:00:21.1]} 30. Re1 {[%clk 0:01:23.5]}
30... Bxb4 {[%clk 0:00:20.1]} 31. cxb4 {[%clk 0:01:19.9]} 31... Rxd4 {[%clk
0:00:20.5]} 32. Rb1 {[%clk 0:01:20.5]} 32... Ke6 {[%clk 0:00:20.8]} 33. Kf2
{[%clk 0:01:20.9]} 33... Kd5 {[%clk 0:00:19.8]} 34. b5 {[%clk 0:01:20.2]} 34...
Rxa4 {[%clk 0:00:18.5]} 35. bxa6 {[%clk 0:01:19.5]} 35... bxa6 {[%clk
0:00:19.4]} 36. h4 {[%clk 0:01:19]} 36... Ra2+ {[%clk 0:00:17.6]} 37. Ke3 {[%clk
0:01:16.9]} 37... a5 {[%clk 0:00:12.8]} 38. h5 {[%clk 0:01:15.9]} 38... Rxg2
{[%clk 0:00:12.5]} 39. Kf4 {[%clk 0:01:16]} 39... Kc4 {[%clk 0:00:10.2]} 40.
Kxg4 {[%clk 0:01:15.1]} 40... Rh2 {[%clk 0:00:10.8]} 41. Kg5 {[%clk 0:01:15.1]}
41... a4 {[%clk 0:00:11.5]} 42. g4 {[%clk 0:01:15.7]} 42... a3 {[%clk
0:00:11.8]} 43. Kg6 {[%clk 0:01:16.3]} 43... Rb2 {[%clk 0:00:10]} 44. Ra1 {[%clk
0:01:15.6]} 44... Rb6+ {[%clk 0:00:10.4]} 45. Kg5 {[%clk 0:01:14.9]} 45... Rb5+
{[%clk 0:00:06.4]} 46. Kh4 {[%clk 0:01:15.2]} 46... Kb3 {[%clk 0:00:06.5]} 47.
Rb1+ {[%clk 0:01:15.1]} 47... Kc4 {[%clk 0:00:06.8]} 48. Ra1 {[%clk 0:01:11.2]}
48... Kb3 {[%clk 0:00:07.2]} 49. h6 {[%clk 0:01:09.6]} 49... Kb2 {[%clk
0:00:07.1]} 50. Rg1 {[%clk 0:01:06.2]} 50... a2 {[%clk 0:00:07.3]} 51. h7 {[%clk
0:01:03.5]} 51... Rb8 {[%clk 0:00:07.3]} 52. g5 {[%clk 0:01:03.3]} 52... Kc2
{[%clk 0:00:06.3]} 53. Rg2+ {[%clk 0:01:00.6]} 53... Kb1 {[%clk 0:00:06]} 54.
Rxa2 {[%clk 0:01:01.5]} 54... Kxa2 {[%clk 0:00:06.9]} 55. g6 {[%clk 0:01:01.7]}
55... Rb6 {[%clk 0:00:03.2]} 56. Kh5 {[%clk 0:00:58.6]} 56... Rb5+ {[%clk
0:00:03.3]} 57. Kh6 {[%clk 0:00:59]} 57... Rb1 {[%clk 0:00:04.1]} 1-0

[Event "Late-Titled-Tuesday-Blitz-April-16-2024"]
[Site "Chess.com"]
[Date "2024.04.16"]
[Round "2"]
[White "Bkmzzzzz"]
[Black "Hasangatin_Ramil"]
[Result "0-1"]
[WhiteElo "2379"]
[BlackElo "2635"]
[TimeControl "180+1"]
[EndTime "14:17:56 PDT"]
[Termination "Hasangatin_Ramil won by checkmate"]

1. e4 {[%clk 0:02:56.3]} 1... d5 {[%clk 0:02:59.7]} 2. exd5 {[%clk 0:02:55.7]}
2... Qxd5 {[%clk 0:03:00.6]} 3. Nc3 {[%clk 0:02:54.2]} 3... Qd6 {[%clk
0:03:00.9]} 4. d4 {[%clk 0:02:48.6]} 4... Nf6 {[%clk 0:03:01.1]} 5. Bc4 {[%clk
0:02:40.9]} 5... c6 {[%clk 0:03:00.7]} 6. h3 {[%clk 0:02:39.6]} 6... Bf5 {[%clk
0:03:00]} 7. Nf3 {[%clk 0:02:39.5]} 7... e6 {[%clk 0:02:58.9]} 8. O-O {[%clk
0:02:39.1]} 8... Nbd7 {[%clk 0:02:58.3]} 9. Be3 {[%clk 0:02:29.9]} 9... Be7
{[%clk 0:02:56.9]} 10. a4 {[%clk 0:02:27.4]} 10... O-O {[%clk 0:02:56.2]} 11.
Qe2 {[%clk 0:02:25.2]} 11... a5 {[%clk 0:02:55.2]} 12. Rad1 {[%clk 0:02:24.1]}
12... Rfe8 {[%clk 0:02:54.2]} 13. Nh4 {[%clk 0:02:19.7]} 13... Bg6 {[%clk
0:02:53.2]} 14. Nxg6 {[%clk 0:02:19.7]} 14... hxg6 {[%clk 0:02:42.1]} 15. Qf3
{[%clk 0:02:13]} 15... Nb6 {[%clk 0:02:39.6]} 16. Bb3 {[%clk 0:02:03.8]} 16...
Nbd5 {[%clk 0:02:38.7]} 17. Ne4 {[%clk 0:01:40.4]} 17... Nxe4 {[%clk 0:02:34.8]}
18. Qxe4 {[%clk 0:01:41.3]} 18... Bf6 {[%clk 0:02:33.3]} 19. c3 {[%clk
0:01:38.9]} 19... b5 {[%clk 0:02:10.1]} 20. Bd2 {[%clk 0:01:01.5]} 20... Rab8
{[%clk 0:02:07.7]} 21. Rb1 {[%clk 0:00:41.8]} 21... e5 {[%clk 0:01:57]} 22. dxe5
{[%clk 0:00:38.9]} 22... Bxe5 {[%clk 0:01:56.9]} 23. Qd3 {[%clk 0:00:34.3]}
23... Red8 {[%clk 0:01:50.9]} 24. axb5 {[%clk 0:00:26]} 24... cxb5 {[%clk
0:01:49]} 25. c4 {[%clk 0:00:22.1]} 25... bxc4 {[%clk 0:01:28.9]} 26. Bxc4
{[%clk 0:00:18.7]} 26... Nb4 {[%clk 0:01:28.4]} 27. Qxd6 {[%clk 0:00:17.4]}
27... Rxd6 {[%clk 0:01:28]} 28. Bxb4 {[%clk 0:00:18]} 28... Rxb4 {[%clk
0:01:26.8]} 29. Rfc1 {[%clk 0:00:13.5]} 29... Bxb2 {[%clk 0:01:24.1]} 30. Rc2
{[%clk 0:00:13.6]} 30... Bd4 {[%clk 0:01:22.1]} 31. Rd1 {[%clk 0:00:11.6]} 31...
Bxf2+ {[%clk 0:01:14.7]} 32. Kxf2 {[%clk 0:00:12.5]} 32... Rxd1 {[%clk
0:01:13.9]} 33. Be2 {[%clk 0:00:11.9]} 33... Rd8 {[%clk 0:01:13.3]} 34. Rc7
{[%clk 0:00:11.2]} 34... a4 {[%clk 0:01:08.5]} 35. Ra7 {[%clk 0:00:10.1]} 35...
Re8 {[%clk 0:01:06.3]} 36. Bd3 {[%clk 0:00:07.6]} 36... Rd4 {[%clk 0:01:02.2]}
37. Bb5 {[%clk 0:00:07.2]} 37... Rd2+ {[%clk 0:00:58.6]} 38. Kf3 {[%clk
0:00:06.9]} 38... Rc8 {[%clk 0:00:55.5]} 39. Bxa4 {[%clk 0:00:07]} 39... Rc3+
{[%clk 0:00:55.2]} 40. Kf4 {[%clk 0:00:05.7]} 40... Rf2+ {[%clk 0:00:52]} 41.
Ke4 {[%clk 0:00:05.7]} 41... Rxg2 {[%clk 0:00:49.1]} 42. Bd7 {[%clk 0:00:04.1]}
42... Rgc2 {[%clk 0:00:40.9]} 43. Ra8+ {[%clk 0:00:03.1]} 43... Kh7 {[%clk
0:00:40.6]} 44. Be8 {[%clk 0:00:03.5]} 44... Rc7 {[%clk 0:00:40.1]} 45. Kf3
{[%clk 0:00:02.7]} 45... R2c3+ {[%clk 0:00:39.5]} 46. Kg2 {[%clk 0:00:03]} 46...
Rd3 {[%clk 0:00:37.6]} 47. Kf2 {[%clk 0:00:02.9]} 47... Rc2+ {[%clk 0:00:36.7]}
48. Ke1 {[%clk 0:00:03.2]} 48... Rxh3 {[%clk 0:00:35.3]} 49. Bxf7 {[%clk
0:00:02.6]} 49... Rh1# {[%clk 0:00:34.7]} 0-1